bitfinex/quotes_SOLUSD_20250621
["timestamp","ask_amount","ask_price","bid_price","bid_amount"]
[1750505638201,26.0,142.58,142.53,57.89664046]
[1750505638399,9.80609777,142.57,142.54,6.34]
[1750505638623,4.56040669,142.57,142.55,28.48]
[1750505639126,4.56040669,142.57,142.56,7.01459034]
[1750505639296,9.80459591,142.57,142.56,7.01459034]
[1750505639698,10.49459591,142.57,142.56,7.01459034]
[1750505642830,13.04652318,142.57,142.56,7.01459034]
[1750505651714,12.35652318,142.57,142.56,7.01459034]
[1750505652511,5.24418922,142.57,142.56,7.01459034]
[1750505652723,12.35652318,142.57,142.56,7.01459034]
[1750505653126,13.04652318,142.57,142.56,7.01459034]
[1750505653910,13.04927058,142.57,142.56,7.01459034]
[1750505662345,12.35927058,142.57,142.55,35.4949092]
[1750505662549,13.03927058,142.56,142.55,35.4949092]
[1750505664251,12.35927058,142.56,142.55,35.4949092]
[1750505664752,5.24693662,142.56,142.55,35.4949092]
[1750505664921,5.24693662,142.56,142.55,35.7949092]
[1750505667035,5.24693662,142.56,142.55,35.4949092]
[1750505668423,9.79788246,142.56,142.55,35.4949092]
[1750505669139,10.47788246,142.56,142.55,35.4949092]
[1750505672238,5.92693662,142.56,142.55,35.4949092]
[1750505672548,10.47788246,142.56,142.55,35.4949092]
[1750505675262,5.24693662,142.56,142.55,35.7949092]
[1750505675558,4.55094584,142.57,142.55,35.4949092]
[1750505675766,5.25783455,142.56,142.55,35.4949092]
[1750505676282,4.55094584,142.57,142.55,35.4949092]
[1750505676459,5.25776877,142.56,142.55,35.4949092]
[1750505680565,9.80871461,142.56,142.55,35.4949092]
[1750505681058,10.48871461,142.56,142.55,35.4749092]
[1750505684570,10.48871461,142.56,142.55,7.0149092]
[1750505684771,10.48871461,142.56,142.55,35.4749092]
[1750505690181,5.93776877,142.56,142.55,35.4749092]
[1750505690366,10.48871461,142.56,142.55,28.46]
[1750505690675,9.80871461,142.56,142.54,41.51530612]
[1750505690859,10.53871461,142.55,142.54,41.51530612]
[1750505693173,5.98776877,142.55,142.54,41.51530612]
[1750505693366,10.53871461,142.55,142.54,41.51530612]
[1750505695678,10.53871461,142.55,142.54,35.47530612]
[1750505699187,0.73,142.54,142.53,7.0158731]
[1750505699354,5.25776877,142.54,142.53,35.4758731]
[1750505699559,5.25776877,142.54,142.53,40.02681894]
[1750505699861,5.25625384,142.57,142.53,92.64731988]
[1750505700171,6.55867078,142.6,142.56,4.55094584]
[1750505700355,5.25623887,142.59,142.57,33.01094584]
[1750505700554,11.83961662,142.62,142.57,45.46494584]
[1750505700861,9.80638269,142.61,142.57,45.46494584]
[1750505701078,5.25543685,142.6,142.57,45.46494584]
[1750505701276,5.25543685,142.59,142.58,4.55094584]
[1750505701471,4.55094584,142.63,142.58,4.55094584]
[1750505701674,5.25288474,142.62,142.59,32.99094584]
[1750505701870,5.25288474,142.61,142.6,35.45262272]
[1750505706187,7.10418264,142.63,142.6,35.45262272]
[1750505706486,5.24265955,142.62,142.6,35.45262272]
[1750505706682,5.24265955,142.61,142.6,35.45262272]
[1750505707373,7.10418264,142.63,142.6,52.98417952]
[1750505707568,5.24138996,142.62,142.6,52.98417952]
[1750505707775,7.10418264,142.63,142.6,52.98417952]
[1750505707965,5.2412004,142.62,142.6,52.98417952]
[1750505708167,7.83418264,142.63,142.6,52.98417952]
[1750505708373,5.24023977,142.62,142.6,52.98417952]
[1750505708576,7.83418264,142.63,142.6,52.98417952]
[1750505708791,5.24003851,142.62,142.6,52.98417952]
[1750505708984,7.83418264,142.63,142.6,52.98417952]
[1750505709185,5.24004814,142.62,142.6,52.98417952]
[1750505709386,7.10418264,142.62,142.6,52.98417952]
[1750505713193,19.10637806,142.64,142.6,52.98417952]
[1750505713490,26.2105607,142.64,142.6,60.08836216]
[1750505713696,26.2105607,142.64,142.6,52.98417952]
[1750505713861,7.10418264,142.62,142.6,52.98417952]
[1750505714063,7.83418264,142.62,142.6,52.98417952]
[1750505716095,7.10418264,142.62,142.6,52.98417952]
[1750505720983,7.83418264,142.63,142.6,52.98417952]
[1750505722809,4.54705426,142.62,142.6,52.98417952]
[1750505722991,4.54705426,142.63,142.6,52.98417952]
[1750505723382,4.54705426,142.61,142.58,24.54762238]
[1750505723576,4.54705426,142.62,142.59,28.44]
[1750505724006,4.54705426,142.63,142.59,28.44]
[1750505724307,23.65343232,142.64,142.6,4.54705426]
[1750505724506,23.65343232,142.64,142.61,28.42]
[1750505724705,24.38343232,142.64,142.61,28.42]
[1750505724881,4.54705426,142.63,142.61,28.42]
[1750505725081,5.27705426,142.63,142.61,28.42]
[1750505725504,5.27705426,142.63,142.62,7.01163932]
[1750505727410,0.73,142.63,142.62,7.01163932]
[1750505727597,5.27705426,142.63,142.62,7.01163932]
[1750505730907,23.65343232,142.64,142.62,7.01163932]
[1750505731111,23.65343232,142.64,142.63,28.42]
[1750505731411,24.38343232,142.64,142.63,28.42]
[1750505731605,24.38343232,142.64,142.63,35.43114772]
[1750505739222,19.10637806,142.64,142.63,35.43114772]
[1750505739603,4.54705426,142.65,142.63,35.43114772]
[1750505740012,5.22987264,142.66,142.63,52.95901703]
[1750505740216,5.22987264,142.67,142.63,58.95901703]
[1750505740423,5.27705426,142.67,142.63,58.95901703]
[1750505740798,4.54705426,142.66,142.63,58.95901703]
[1750505741001,5.27705426,142.66,142.63,58.95901703]
[1750505741201,115.4,142.68,142.63,58.95901703]
[1750505741202,4.54705426,142.65,142.63,58.95901703]
[1750505741416,5.27705426,142.65,142.63,58.95901703]
[1750505745819,9.7914918,142.64,142.63,41.43114772]
[1750505746019,4.54705426,142.64,142.63,41.43114772]
[1750505746332,4.54705426,142.65,142.63,41.43114772]
[1750505746920,5.26705426,142.65,142.63,41.43114772]
[1750505747232,5.26705426,142.64,142.63,41.43114772]
[1750505747437,10.51227265,142.64,142.63,41.43114772]
[1750505749636,10.51227265,142.64,142.63,13.01114772]
[1750505749944,10.51227265,142.64,142.63,41.43114772]
[1750505758748,10.51227265,142.64,142.63,35.43114772]
[1750505760154,5.96521839,142.64,142.63,35.43114772]
[1750505760445,10.51227265,142.64,142.63,35.43114772]
[1750505762327,9.79227265,142.64,142.63,35.43114772]
[1750505763145,5.24521839,142.64,142.63,35.43114772]
[1750505764548,5.26705426,142.65,142.63,35.43114772]
[1750505765248,5.25275504,142.64,142.63,35.43114772]
[1750505765955,9.7998093,142.64,142.63,35.43114772]
[1750505767366,10.5198093,142.64,142.63,35.43114772]
[1750505768532,5.25275504,142.64,142.63,35.43114772]
[1750505768754,9.7998093,142.64,142.63,35.43114772]
[1750505769138,5.25275504,142.64,142.63,35.43114772]
[1750505774165,5.25275504,142.64,142.63,35.73114772]
[1750505774460,5.25275504,142.64,142.63,36.03114772]
[1750505774962,5.25275504,142.64,142.63,35.73114772]
[1750505775161,4.54705426,142.65,142.63,35.73114772]
[1750505775375,5.25473762,142.64,142.63,35.73114772]
[1750505777363,9.80179188,142.64,142.63,35.73114772]
[1750505777556,10.50179188,142.64,142.63,35.73114772]
[1750505777744,9.80179188,142.64,142.63,35.73114772]
[1750505781748,10.50179188,142.64,142.63,35.73114772]
[1750505782366,5.95473762,142.64,142.63,35.73114772]
[1750505782548,10.50179188,142.64,142.63,35.73114772]
[1750505789953,10.50179188,142.64,142.63,7.31114772]
[1750505790154,10.50179188,142.64,142.63,35.71114772]
[1750505793881,10.50179188,142.64,142.63,7.31114772]
[1750505794081,10.50179188,142.64,142.63,35.71114772]
[1750505798974,10.50179188,142.64,142.63,28.7]
[1750505799191,10.50179188,142.64,142.63,0.3]
[1750505800275,5.95473762,142.64,142.63,7.31114772]
[1750505800476,10.50179188,142.64,142.63,7.31114772]
[1750505802168,9.80179188,142.64,142.63,7.31114772]
[1750505802883,10.50179188,142.64,142.63,7.31114772]
[1750505804485,5.95473762,142.64,142.63,7.31114772]
[1750505804694,10.50179188,142.64,142.63,7.31114772]
[1750505811586,5.95473762,142.64,142.63,7.31114772]
[1750505811995,10.50179188,142.64,142.63,7.31114772]
[1750505813597,5.95473762,142.64,142.63,7.31114772]
[1750505813770,10.50179188,142.64,142.63,7.31114772]
[1750505817402,9.80179188,142.64,142.63,7.31114772]
[1750505819198,10.50179188,142.64,142.63,7.31114772]
[1750505820298,5.95473762,142.64,142.63,7.31114772]
[1750505820480,10.50179188,142.64,142.63,7.31114772]
[1750505821398,9.80179188,142.64,142.63,7.31114772]
[1750505822401,10.50179188,142.64,142.63,7.31114772]
[1750505831304,10.50179188,142.64,142.63,0.3]
[1750505831512,17.06046266,142.64,142.63,0.3]
[1750505832717,17.06046266,142.64,142.63,7.31114772]
[1750505832918,10.50179188,142.64,142.63,7.31114772]
[1750505843819,10.54179188,142.64,142.63,7.31114772]
[1750505844520,11.54885308,142.64,142.63,7.31114772]
[1750505844896,7.00179882,142.64,142.63,7.31114772]
[1750505845106,11.54885308,142.64,142.63,7.31114772]
[1750505847821,6.26179882,142.64,142.63,7.31114772]
[1750505848018,10.80885308,142.64,142.63,7.31114772]
[1750505848515,11.54885308,142.64,142.63,7.31114772]
[1750505851419,11.54885308,142.64,142.63,0.3]
[1750505853543,18.10752386,142.64,142.63,0.3]
[1750505855430,11.54885308,142.64,142.63,0.3]
[1750505856531,26.0,142.6,142.56,7.01427462]
[1750505856828,4.54705426,142.57,142.56,7.01427462]
[1750505857008,10.54179188,142.57,142.56,7.01427462]
[1750505857211,9.80179188,142.57,142.56,7.01427462]
[1750505860333,97.71896501,142.62,142.56,24.55075048]
[1750505860541,4.54705426,142.59,142.56,24.55075048]
[1750505862345,4.54705426,142.59,142.58,7.01360639]
[1750505863614,9.79052106,142.61,142.58,24.54762238]
[1750505863836,4.54705426,142.61,142.58,24.54762238]
[1750505867141,5.55411546,142.62,142.6,6.0221]
[1750505867442,1.0070612,142.62,142.6,34.4021]
[1750505867644,5.55411546,142.62,142.6,34.4021]
[1750505868542,5.55411546,142.62,142.61,7.01213098]
[1750505869742,1.0070612,142.62,142.61,7.01213098]
[1750505875828,1.0070612,142.62,142.61,11.55918524]
[1750505877054,1.0070612,142.62,142.61,7.01213098]
[1750505877255,1.0070612,142.62,142.61,11.55918524]
[1750505880054,1.0070612,142.62,142.61,7.01213098]
[1750505880557,1.7570612,142.62,142.61,7.01213098]
[1750505880737,6.30411546,142.62,142.61,7.01213098]
[1750505880946,11.54640458,142.62,142.61,7.01213098]
[1750505882832,14.10585814,142.62,142.61,7.01213098]
[1750505883463,6.99935032,142.62,142.61,7.01213098]
[1750505883632,14.10585814,142.62,142.61,7.01213098]
[1750505892259,14.10585814,142.62,142.6,7.01262272]
[1750505892451,26.75,142.6,142.59,12.99311452]
[1750505892761,39.09879694,142.6,142.59,12.99311452]
[1750505893844,39.09879694,142.6,142.59,5.98]
[1750505894052,0.75,142.59,142.56,35.37459034]
[1750505894258,7.79650782,142.57,142.56,35.37459034]
[1750505895363,7.79650782,142.57,142.56,7.01459034]
[1750505895563,7.79650782,142.57,142.56,35.37459034]
[1750505895963,7.79650782,142.57,142.56,7.01459034]
[1750505897943,7.79650782,142.57,142.56,28.36]
[1750505898868,7.79650782,142.57,142.55,24.55168974]
[1750505899053,0.69,142.57,142.56,28.36]
[1750505899255,7.79650782,142.57,142.56,28.36]
[1750505899447,7.10650782,142.57,142.56,28.36]
[1750505899668,7.79650782,142.57,142.56,28.36]
[1750505899843,7.79650782,142.57,142.56,35.37459034]
[1750505902968,0.69,142.57,142.56,35.37459034]
[1750505903166,0.69,142.61,142.56,52.9110662]
[1750505903369,7.10650782,142.61,142.56,60.01757402]
[1750505903572,1.0070612,142.62,142.58,13.53180782]
[1750505903778,1.0070612,142.62,142.6,7.10650782]
[1750505903963,0.5070612,142.62,142.61,28.36]
[1750505905074,0.5070612,142.62,142.61,35.37213098]
[1750505912360,7.61356902,142.62,142.61,35.37213098]
[1750505912987,0.5070612,142.62,142.61,35.37213098]
[1750505913766,7.61356902,142.62,142.61,35.37213098]
[1750505924169,0.5070612,142.62,142.61,35.37213098]
[1750505928411,0.5070612,142.62,142.61,7.01213098]
[1750505928691,8.32356902,142.62,142.61,35.43213098]
[1750505932291,8.32356902,142.62,142.61,7.01213098]
[1750505932500,8.32356902,142.62,142.61,35.43213098]
[1750505935195,13.56000688,142.62,142.61,35.43213098]
[1750505939696,13.56000688,142.62,142.61,7.01213098]
[1750505940196,13.56000688,142.62,142.61,35.41213098]
[1750505940603,6.45349906,142.62,142.61,35.41213098]
[1750505940906,11.00213138,142.62,142.61,35.41213098]
[1750505944307,10.29213138,142.62,142.61,35.41213098]
[1750505944609,0.5070612,142.62,142.61,35.41213098]
[1750505946781,7.61209696,142.62,142.61,35.41213098]
[1750505948414,0.5070612,142.62,142.61,35.41213098]
[1750505948589,7.61209696,142.62,142.61,35.41213098]
[1750505949314,0.5070612,142.62,142.61,35.41213098]
[1750505949517,7.61209696,142.62,142.61,35.41213098]
[1750505949817,0.5070612,142.62,142.61,35.41213098]
[1750505954315,0.5070612,142.62,142.61,42.51716674]
[1750505955093,0.5070612,142.62,142.61,35.41213098]
[1750505961421,8.31209696,142.62,142.61,35.41213098]
[1750505963336,7.61209696,142.62,142.61,35.41213098]
[1750505966145,0.7,142.6,142.58,7.01360639]
[1750505966330,13.05381514,142.59,142.58,35.37360639]
[1750505966516,13.05388727,142.59,142.58,35.37360639]
[1750505966715,7.80503576,142.59,142.58,35.37360639]
[1750505966919,10.49889129,142.59,142.58,35.37360639]
[1750505967416,5.25110832,142.59,142.58,35.37360639]
[1750505968353,1.85110832,142.59,142.58,35.37360639]
[1750505968926,7.1089822,142.59,142.58,35.37360639]
[1750505970441,7.8089822,142.59,142.58,35.37360639]
[1750505972249,7.8089822,142.59,142.57,17.53480839]
[1750505972461,0.7,142.59,142.58,28.38]
[1750505972751,7.8089822,142.59,142.58,28.38]
[1750505973555,7.8089822,142.59,142.58,35.39360639]
[1750505975335,7.1089822,142.59,142.58,35.39360639]
[1750505976042,7.1089822,142.6,142.58,52.92762238]
[1750505983462,0.5070612,142.62,142.6,7.01262272]
[1750505983655,0.5070612,142.62,142.61,34.34]
[1750505984106,7.6160434,142.62,142.61,34.34]
[1750505984848,7.6160434,142.62,142.61,41.35213098]
[1750505988947,0.5070612,142.62,142.61,41.35213098]
[1750505990045,0.5070612,142.62,142.6,7.01262272]
[1750505990246,0.5070612,142.62,142.61,34.46]
[1750505991155,0.5070612,142.62,142.61,41.47213098]
[1750505991966,5.05360362,142.62,142.61,41.47213098]
[1750505993767,5.74360362,142.62,142.61,7.01213098]
[1750505993970,10.98333906,142.62,142.61,35.47213098]
[1750505994172,10.98333906,142.62,142.61,7.01213098]
[1750505994365,10.98333906,142.62,142.61,35.49213098]
[1750505994559,10.98333906,142.62,142.61,28.48]
[1750505994762,10.98333906,142.62,142.6,35.49241545]
[1750505994978,10.47627786,142.61,142.6,35.49241545]
[1750505995351,0.69,142.6,142.59,7.01298629]
[1750505995671,4.54654242,142.6,142.59,35.49298629]
[1750505995856,5.23654242,142.6,142.59,35.49298629]
[1750505996273,10.47665967,142.6,142.59,35.49298629]
[1750505996671,0.69,142.59,142.58,12.99353701]
[1750505996860,13.04162505,142.59,142.58,41.47353701]
[1750505999681,13.04162505,142.59,142.58,12.99353701]
[1750505999975,13.04162505,142.59,142.58,34.46]
[1750506000166,13.04162505,142.59,142.58,41.47360639]
[1750506000680,13.04162505,142.59,142.58,12.99360639]
[1750506001298,13.04162505,142.59,142.58,5.98]
[1750506002787,0.69,142.58,142.56,28.48]
[1750506002987,5.24011725,142.58,142.56,28.48]
[1750506003185,7.8015078,142.57,142.56,28.48]
[1750506004779,7.8015078,142.57,142.56,35.49459034]
[1750506005368,7.1115078,142.57,142.54,7.01557457]
[1750506005594,0.69,142.54,142.53,6.04]
[1750506005798,7.8015078,142.54,142.53,6.04]
[1750506006897,12.34694129,142.54,142.51,7.01692753]
[1750506007208,7.8015078,142.52,142.51,7.01692753]
[1750506010786,0.69,142.51,142.48,6.04]
[1750506010990,0.69,142.5,142.49,7.01803635]
[1750506011190,7.8015078,142.5,142.49,7.01803635]
[1750506011487,7.8015078,142.5,142.48,13.05842871]
[1750506011689,89.4,142.51,142.48,13.05842871]
[1750506011690,7.8015078,142.49,142.48,13.05842871]
[1750506012487,89.4,142.51,142.48,13.05842871]
[1750506012488,90.09,142.51,142.48,13.05842871]
[1750506012677,7.1115078,142.49,142.48,13.05842871]
[1750506016783,7.1115078,142.5,142.48,30.604751]
[1750506016996,7.1115078,142.5,142.49,28.5]
[1750506018576,7.1115078,142.5,142.49,35.51803635]
[1750506027807,7.8015078,142.5,142.49,35.51803635]
[1750506027996,7.8015078,142.5,142.48,13.05836033]
[1750506027997,0.69,142.49,142.48,13.05836033]
[1750506028200,7.8015078,142.49,142.48,41.53836033]
[1750506028596,0.69,142.52,142.48,59.08468262]
[1750506028809,7.1115078,142.51,142.48,59.08468262]
[1750506034005,0.08918121,142.49,142.48,59.08468262]
[1750506036521,0.08918121,142.49,142.48,65.20268262]
[1750506040821,0.08918121,142.49,142.48,73.96049042]
[1750506042129,0.08918121,142.49,142.48,92.61013928]
[1750506044194,0.08918121,142.49,142.48,92.90013928]
[1750506044407,0.08918121,142.49,142.48,38.65898262]
[1750506044603,0.08918121,142.49,142.48,67.13898262]
[1750506045709,0.08918121,142.49,142.48,65.20268262]
[1750506046108,0.08918121,142.49,142.48,59.08468262]
[1750506050919,0.08918121,142.49,142.48,66.19619042]
[1750506051655,0.08918121,142.49,142.48,59.08468262]
[1750506060236,0.08918121,142.49,142.48,66.19619042]
[1750506061312,0.08918121,142.49,142.48,84.84583928]
[1750506061513,0.08918121,142.49,142.48,112.51213928]
[1750506063821,0.08918121,142.49,142.48,118.74623928]
[1750506066841,0.08918121,142.49,142.48,66.19619042]
[1750506067240,0.82918121,142.49,142.48,30.60468262]
[1750506067432,0.82918121,142.49,142.48,59.06468262]
[1750506067941,0.82918121,142.49,142.48,30.60468262]
[1750506068124,0.82918121,142.49,142.48,59.08468262]
[1750506069818,0.08918121,142.49,142.48,59.08468262]
[1750506075128,0.80918121,142.49,142.48,30.60468262]
[1750506075329,0.80918121,142.49,142.48,59.06468262]
[1750506075826,7.92068901,142.49,142.48,30.60468262]
[1750506076030,7.92068901,142.49,142.48,59.06468262]
[1750506076232,7.92068901,142.49,142.48,30.60468262]
[1750506076428,7.92068901,142.49,142.48,59.06468262]
[1750506078159,7.92068901,142.49,142.48,41.51836033]
[1750506078946,7.8315078,142.49,142.48,41.51836033]
[1750506080341,13.0850822,142.49,142.48,41.51836033]
[1750506080543,7.8315078,142.49,142.48,41.51836033]
[1750506082752,7.8315078,142.49,142.48,13.05836033]
[1750506082945,7.8315078,142.49,142.48,41.49836033]
[1750506086164,13.07935056,142.5,142.48,41.49836033]
[1750506086357,7.8315078,142.5,142.48,41.49836033]
[1750506086966,0.72,142.51,142.48,59.04468262]
[1750506087266,0.72,142.5,142.48,59.04468262]
[1750506087464,7.8315078,142.5,142.48,59.04468262]
[1750506091073,7.8315078,142.49,142.48,59.04468262]
[1750506091564,7.8315078,142.49,142.48,41.49836033]
[1750506091769,7.8315078,142.49,142.48,13.05836033]
[1750506091972,7.8315078,142.49,142.48,41.49836033]
[1750506093847,7.8315078,142.49,142.48,41.40917912]
[1750506094144,7.8315078,142.49,142.48,5.95081879]
[1750506094350,13.07926663,142.49,142.48,5.95081879]
[1750506094568,7.8315078,142.49,142.48,34.39081879]
[1750506096774,13.07811265,142.49,142.48,34.39081879]
[1750506098275,13.07811265,142.49,142.48,5.95081879]
[1750506098456,13.07811265,142.49,142.48,34.39081879]
[1750506098659,13.07811265,142.49,142.48,41.4093477]
[1750506098861,7.8315078,142.49,142.48,41.4093477]
[1750506103675,26.0,142.5,142.48,41.4093477]
[1750506103879,7.1115078,142.49,142.48,41.4093477]
[1750506104063,7.8315078,142.49,142.48,41.4093477]
[1750506113486,13.08275186,142.49,142.48,41.4093477]
[1750506115378,7.8315078,142.49,142.48,41.4093477]
[1750506115780,13.08438175,142.49,142.48,41.4093477]
[1750506116889,10.52934323,142.49,142.48,41.4093477]
[1750506120277,5.25287395,142.49,142.48,41.4093477]
[1750506120778,4.55646928,142.5,142.48,41.4093477]
[1750506124073,4.55646928,142.49,142.48,41.4093477]
[1750506126878,7.11830016,142.49,142.48,41.4093477]
[1750506137706,0.74,142.51,142.48,58.95566999]
[1750506137887,7.11830016,142.51,142.48,58.95566999]
[1750506140192,7.11830016,142.5,142.48,58.95566999]
[1750506146414,89.4,142.53,142.48,58.95566999]
[1750506146615,7.11830016,142.51,142.48,58.95566999]
[1750506148893,4.5542801,142.51,142.48,58.95566999]
[1750506162345,5.2442801,142.51,142.48,58.95566999]
[1750506165660,5.2642801,142.5,142.48,58.95566999]
[1750506169353,5.2642801,142.49,142.48,58.95566999]
[1750506171249,4.5542801,142.49,142.48,41.3693477]
[1750506171762,4.5542801,142.5,142.48,58.91566999]
[1750506172871,5.2642801,142.49,142.48,30.51566999]
[1750506173047,5.2642801,142.49,142.48,58.91566999]
[1750506174971,10.52491183,142.49,142.48,58.91566999]
[1750506175863,5.2642801,142.49,142.48,41.3693477]
[1750506176056,10.52477436,142.49,142.48,41.3693477]
[1750506176866,10.52477436,142.49,142.48,12.9693477]
[1750506177173,10.52477436,142.49,142.48,41.3693477]
[1750506183463,10.52477436,142.49,142.48,12.9693477]
[1750506183670,10.52477436,142.49,142.48,34.35081879]
[1750506184688,10.52477436,142.49,142.43,7.02099276]
[1750506184689,9.81477436,142.49,142.43,7.02099276]
[1750506184986,5.2642801,142.44,142.43,7.02099276]
[1750506185363,5.2642801,142.44,142.43,35.42099276]
[1750506185670,5.2642801,142.44,142.43,7.02099276]
[1750506185877,5.2642801,142.44,142.43,35.42099276]
[1750506190174,5.2642801,142.44,142.43,7.02099276]
[1750506190374,5.2642801,142.44,142.43,35.42099276]
[1750506190573,4.5542801,142.44,142.43,35.42099276]
[1750506190779,107.6171204,142.47,142.43,35.42099276]
[1750506190780,89.4,142.47,142.43,52.97347468]
[1750506190980,4.5542801,142.45,142.43,52.97347468]
[1750506192883,4.5542801,142.46,142.43,52.97347468]
[1750506195381,4.5542801,142.47,142.43,57.52775478]
[1750506195587,4.5542801,142.47,142.43,59.04915478]
[1750506196675,4.5542801,142.48,142.43,59.04915478]
[1750506196990,5.2442801,142.48,142.43,59.04915478]
[1750506198190,5.2442801,142.48,142.43,54.49487468]
[1750506198389,5.2442801,142.48,142.43,59.04915478]
[1750506199576,4.5542801,142.5,142.45,4.5542801]
[1750506199771,5.2442801,142.5,142.46,28.4]
[1750506200588,5.2442801,142.5,142.47,24.56657541]
[1750506200896,5.2442801,142.5,142.48,28.4]
[1750506202793,5.2442801,142.5,142.49,7.01803635]
[1750506207601,89.4,142.51,142.49,7.01803635]
[1750506207778,89.4,142.51,142.5,28.38]
[1750506207982,5.2442801,142.52,142.5,28.38]
[1750506209180,5.2442801,142.52,142.51,7.01705143]
[1750506221507,10.48540982,142.52,142.51,7.01705143]
[1750506222314,10.48540982,142.52,142.5,35.39732134]
[1750506222516,4.5542801,142.51,142.5,35.39732134]
[1750506222828,5.2442801,142.51,142.5,35.39732134]
[1750506225511,5.2442801,142.51,142.5,7.01732134]
[1750506225830,10.48565895,142.51,142.5,35.39732134]
[1750506227144,9.79565895,142.51,142.49,28.38]
[1750506227442,10.51565895,142.5,142.49,28.38]
[1750506227620,5.2742801,142.5,142.49,28.38]
[1750506227821,5.96137885,142.5,142.49,28.38]
[1750506228011,5.2742801,142.5,142.49,28.38]
[1750506228615,4.5542801,142.5,142.49,28.38]
[1750506229039,4.5542801,142.5,142.49,35.39803635]
[1750506233418,5.2742801,142.5,142.49,35.39803635]
[1750506235637,4.5542801,142.5,142.49,35.39803635]
[1750506240253,4.5542801,142.51,142.49,35.39803635]
[1750506240560,4.5542801,142.51,142.49,52.94312723]
[1750506242131,89.4,142.54,142.49,59.53732723]
[1750506242457,9.80825927,142.53,142.49,59.53732723]
[1750506242635,5.25397917,142.52,142.49,59.53732723]
[1750506242962,4.5542801,142.53,142.49,59.53732723]
[1750506243378,5.25557066,142.52,142.49,59.53732723]
[1750506243556,4.5542801,142.53,142.49,59.53732723]
[1750506243751,5.2552899,142.52,142.49,59.53732723]
[1750506243957,4.5542801,142.53,142.49,59.53732723]
[1750506244158,4.5542801,142.53,142.49,64.09160733]
[1750506244369,5.25639853,142.52,142.49,64.09160733]
[1750506244574,4.5542801,142.53,142.49,64.09160733]
[1750506244751,5.25607703,142.52,142.49,64.09160733]
[1750506244951,4.5542801,142.53,142.49,64.09160733]
[1750506245252,5.25607703,142.52,142.49,64.09160733]
[1750506245550,4.5542801,142.53,142.49,64.09160733]
[1750506245746,5.25600956,142.52,142.49,64.09160733]
[1750506245973,4.5542801,142.53,142.49,64.09160733]
[1750506246180,5.25600956,142.52,142.49,64.09160733]
[1750506246360,5.2742801,142.52,142.49,59.53732723]
[1750506246564,4.5542801,142.51,142.49,59.53732723]
[1750506249682,4.5542801,142.5,142.49,24.56312723]
[1750506249884,0.72,142.52,142.49,52.92312723]
[1750506250086,4.5542801,142.51,142.5,28.36]
[1750506250753,4.5542801,142.51,142.5,35.37754385]
[1750506251486,31.97689135,142.51,142.5,35.37754385]
[1750506251777,36.53117145,142.51,142.5,35.37754385]
[1750506252487,36.53117145,142.51,142.5,7.01754385]
[1750506252672,36.53117145,142.51,142.5,35.37754385]
[1750506255084,0.71,142.5,142.49,7.01803635]
[1750506255264,10.52117145,142.5,142.49,35.37803635]
[1750506256490,9.81117145,142.5,142.49,35.37803635]
[1750506257777,5.25689135,142.5,142.49,35.37803635]
[1750506257962,9.81117145,142.5,142.49,35.37803635]
[1750506258688,10.52117145,142.5,142.49,35.37803635]
[1750506258888,10.52117145,142.5,142.49,28.36]
[1750506261995,10.52117145,142.5,142.49,35.37803635]
[1750506263577,9.81117145,142.5,142.48,12.97841167]
[1750506263887,10.52117145,142.49,142.48,5.96]
[1750506264065,9.81117145,142.49,142.48,12.97852891]
[1750506264592,9.81117145,142.49,142.48,7.01852891]
[1750506265295,93.9542801,142.51,142.48,7.01852891]
[1750506265588,4.5542801,142.53,142.49,28.36]
[1750506265770,5.25427971,142.52,142.49,28.36]
[1750506266096,4.5542801,142.53,142.49,28.36]
[1750506266392,9.80850165,142.52,142.49,28.36]
[1750506266593,4.5542801,142.52,142.5,7.01754385]
[1750506266770,4.5542801,142.52,142.51,28.36]
[1750506266965,9.80843744,142.52,142.51,28.36]
[1750506268086,5.25415734,142.52,142.51,35.37705143]
[1750506268275,30.80000471,142.54,142.51,35.37705143]
[1750506268670,30.80000471,142.54,142.51,52.91968001]
[1750506275998,26.24572461,142.54,142.51,52.91968001]
[1750506276176,30.80000471,142.54,142.51,52.91968001]
[1750506282091,4.5542801,142.53,142.51,52.91968001]
[1750506285310,4.5542801,142.52,142.51,52.91968001]
[1750506293704,5.2342801,142.52,142.51,52.91968001]
[1750506294121,5.2342801,142.52,142.51,7.01705143]
[1750506294332,5.2342801,142.52,142.51,35.37705143]
[1750506296127,4.5542801,142.52,142.51,35.37705143]
[1750506297536,26.92572461,142.54,142.51,35.37705143]
[1750506297833,4.5542801,142.52,142.51,35.37705143]
[1750506298733,26.92572461,142.54,142.51,35.37705143]
[1750506298922,4.5542801,142.52,142.51,35.37705143]
[1750506300224,0.68,142.53,142.51,35.37705143]
[1750506300415,4.5542801,142.52,142.51,35.37705143]
[1750506303629,4.5542801,142.53,142.51,35.37705143]